Cogmind - Beta 13 @@@ ROGUE MODE // 2024.04.07 @ 16:18:10 Player: Grewsome Result: Destroyed by as-52392 with Assembled Heavy Rifle Performance ------------- Evolutions (0) 0 Regions Visited (2) 400 Robots Destroyed (24) 120 Value Destroyed (529) 529 Prototype IDs (0) 0 Alien Tech Used (0) 0 Bonus (0) 0 TOTAL SCORE: 1049 Bonus ------- None Cogmind --------- Core Integrity 0/250 Matter 283/300 Energy 92/100 System Corruption 6% Temperature Cool (0) Movement Core (700) Ox13 Location -10/Mines Parts ------- > --- POWER (1) -------- (None) > --- PROPULSION (2) --- (None) > --- UTILITY (2) ------ High-capacity Storage Unit > --- WEAPON (2) ------- Small Laser > --- INVENTORY (20) --- Ion Engine Improved Heat Sink Huge Storage Unit Improved Terrain Scanner Small Laser Beam Cannon Beam Cannon Mining Laser Peak State ------------ > --- POWER ------------ Light Nuclear Core > --- PROPULSION ------- Wheel Compact Wheel > --- UTILITY ---------- Improved Heat Sink High-capacity Storage Unit > --- WEAPON ----------- Beam Cannon Beam Cannon > --- INVENTORY -------- Ion Engine Huge Storage Unit Improved Terrain Scanner Hacking Suite Small Laser Small Laser Assault Rifle [Rating: 12] Favorites ----------- Power Light Nuclear Core Engine Ion Engine Power Core Light Nuclear Core Propulsion Light Treads Treads Light Treads Leg Aluminum Leg Wheel Wheel Utility Improved Heat Sink Device Improved Heat Sink Storage High-capacity Storage Unit Hackware Hacking Suite Weapon Beam Cannon Energy Gun Small Laser Energy Cannon Beam Cannon Ballistic Gun Assault Rifle Build | -11 -10 -10 ------- Run | Yrd Mat Min Slots Evolved . | . . . Power . | . . . Propulsion . | . . . Utility . | . . . Weapon . | . . . Parts Attached 24 | 7 17 . Power 4 | 1 3 . Engine 2 | 1 1 . Core 2 | . 2 . Reactor . | . . . Propulsion 6 | 2 4 . Treads 2 | 2 . . Leg 2 | . 2 . Wheel 2 | . 2 . Hover . | . . . Flight . | . . . Utility 7 | 2 5 . Device 2 | 1 1 . Storage 4 | 1 3 . Processor . | . . . Hackware 1 | . 1 . Protection . | . . . Artifact . | . . . Weapon 7 | 2 5 . Energy Gun 2 | . 2 . Energy Cannon 2 | . 2 . Ballistic Gun 3 | 2 1 . Ballistic Cannon . | . . . Launcher . | . . . Special Weapon . | . . . Impact Weapon . | . . . Slashing Weapon . | . . . Piercing Weapon . | . . . Special Melee Weapon . | . . . Unidentified Prototypes . | . . . Parts Lost 10 | . 5 5 Power 2 | . 1 1 Propulsion 5 | . 3 2 Utility 1 | . . 1 Weapon 2 | . 1 1 Highest Loss Streak 5 | . 3 5 To Critical Strikes . | . . . Average Slot Usage (%) 98 | . 98 97 Engine 1 | . 1 . Core 12 | . 12 14 Treads 20 | . 22 . Leg 2 | . 2 . Wheel 3 | . 2 28 Device 12 | . 13 . Storage 14 | . 14 14 Hackware 1 | . . 12 Energy Gun 1 | . . 14 Energy Cannon 21 | . 22 . Ballistic Gun 4 | . 4 12 Naked Turns . | . . . Heaviest Build 52 | 14 52 48 Greatest Support 40 | 40 40 26 Greatest Overweight (x) 17 | . 17 1 Average Overweight (x) . | . . 1 Largest Inventory Capacity 25 | 8 25 20 Average Capacity 16 | 6 17 20 Most Carried 9 | 1 9 8 Average Carried 5 | . 5 8 Final Capacity 20 | 8 20 20 Final Carried 8 | . 8 8 Class Distribution -------------------- 81% | Mutant 18% | Scavenger-Mutant Dominant Class ---------------- Mutant | -10/Materials Scavenger-Mutant | -10/Mines Resources | -11 -10 -10 ----------- Run | Yrd Mat Min Matter Collected 454 | 286 168 . Remotely . | . . . Salvage Created 988 | 73 897 18 Parts 58 | 4 54 . Haulers Intercepted 2 | . 2 . Recyclers Shooed . | . . . Parts Field Recycled . | . . . Retrieved Matter . | . . . Parts Self-Destructed . | . . . Prevented . | . . . Kills | -11 -10 -10 ------- Run | Yrd Mat Min Combat Hostiles Destroyed 14 | . 13 1 Guns 5 | . 4 1 Cannons 9 | . 9 . Classes Destroyed 9 | 2 6 1 Worker 2 | . 2 . Tunneler 1 | 1 . . Hauler 2 | . 2 . Recycler 3 | 1 2 . Operator 1 | . 1 . Watcher 2 | . 2 . Swarmer 2 | . 2 . Grunt 11 | . 11 . Assembled 1 | . . 1 Best Kill Streak 5 | 2 5 1 Combat Bots Only 5 | . 5 1 Max Kills in Single Turn 1 | 1 1 1 Gunslinging . | . . . Exploded . | . . . Melee . | . . . Uniques/NPCs Destroyed . | . . . Combat | -11 -10 -10 -------- Run | Yrd Mat Min Hostile Shots Fired 116 | . 95 21 Missed 26 | . 22 4 Damage Taken 1253 | . 840 413 Core 263 | . 111 152 Absorbed by Shields . | . . . Core Remaining (%) 100 | 100 . . Volleys Fired 71 | 4 61 6 Largest 2 | 2 2 2 Hottest 120 | 40 120 60 Shots Fired 136 | 8 119 9 Gun 49 | 8 32 9 Cannon 87 | . 87 . Launcher . | . . . Special . | . . . Kinetic 37 | 8 26 3 Thermal 99 | . 93 6 Explosive . | . . . Electromagnetic . | . . . Robot Hit Streak 12 | 4 12 5 Robot Miss Streak 7 | 2 5 7 Penetration Max . | . . . Secondary Targets . | . . . Shots Hit Robots 81 | 6 69 6 Core Hits 35 | 4 28 3 Critical Kills 1 | . 1 . Critical Parts Destroyed . | . . . Critical Strikes 1 | . 1 . Meltdown 1 | . 1 . Melee Attacks . | . . . Impact . | . . . Slashing . | . . . Piercing . | . . . Sneak Attacks . | . . . Combat Hostiles . | . . . Follow-up Attacks . | . . . Damage Inflicted 1338 | 60 1209 69 Guns 348 | 60 219 69 Cannons 837 | . 837 . Explosions 153 | . 153 . Melee . | . . . Ramming . | . . . Kinetic 267 | 60 184 23 Thermal 1071 | . 1025 46 Explosive . | . . . Electromagnetic . | . . . Impact . | . . . Slashing . | . . . Piercing . | . . . Highest Corruption 6 | . . 6 Average Corruption 5 | . . 5 Corruption Purged . | . . . Corruption Blocked . | . . . Overload Shots . | . . . Overflow Damage 157 | . 157 . Projectiles 23 | . 23 . Explosions 134 | . 134 . Melee . | . . . Knockbacks . | . . . Impact . | . . . Kinetic . | . . . Secondary . | . . . Self-Inflicted Damage 71 | . 71 . Shots 1 | . 1 . Rammed . | . . . Targets Rammed . | . . . Kicked . | . . . Crushed . | . . . Highest Temperature 276 | . 276 22 Average Temperature 56 | . 59 12 Received Heat Transfer 294 | . 294 . Effects 2 | . 2 . Interference 2 | . 2 . Siege Activations . | . . . Robots Corrupted . | . . . Combat Hostiles . | . . . Parts Fried . | . . . Impact Corruptions . | . . . Robots Melted 1 | . 1 . Combat Hostiles . | . . . Parts Melted 2 | . 2 . Heat Transferred 2051 | . 1951 100 Parts Sabotaged . | . . . Parts Stolen . | . . . Parts Stripped . | . . . Power Chain Reactions . | . . . Alert | -11 -10 -10 ------- Run | Yrd Mat Min Peak Influence 161 | 10 161 1 Initial 6 | . 6 1 Average 41 | 1 48 . Maximum Alert Level . | . . . Low Security (%) 100 | 100 100 100 Level 1 . | . . . Level 2 . | . . . Level 3 . | . . . Level 4 . | . . . Level 5 . | . . . High Security . | . . . Max Security . | . . . Squads Dispatched 3 | . 3 . Investigation 2 | . 2 . Extermination . | . . . Reinforcement 1 | . 1 . Assault . | . . . Garrison . | . . . Intercept . | . . . Searches Triggered . | . . . Construction Impeded . | . . . Haulers Reinforced . | . . . Active Scanning Responses . | . . . Cargo Convoy Interrupts . | . . . Stealth | -11 -10 -10 --------- Run | Yrd Mat Min Distress Signals 2 | . 2 . Communications Jammed . | . . . Distress Signals . | . . . Times Spotted 42 | . 23 19 Peak Tracking Total 14 | . 5 14 Tactical Retreats 1 | . 1 . Traps | -11 -10 -10 ------- Run | Yrd Mat Min Traps Triggered 1 | . 1 . Indirectly . | . . . Trap Hack Attempts . | . . . Triggered . | . . . Disarmed . | . . . Reprogrammed . | . . . Reused . | . . . Traps Extracted . | . . . Installed . | . . . Triggered . | . . . Machines | -11 -10 -10 ---------- Run | Yrd Mat Min Machines Disabled 3 | . 3 . Max in Single Turn 2 | . 2 . Machines Repaired . | . . . Machines Dismantled . | . . . Machines Sabotaged . | . . . Overloaded Fab Kills . | . . . Hacking | -11 -10 -10 --------- Run | Yrd Mat Min Machines Accessed 4 | . 4 . Terminals 4 | . 4 . Fabricators . | . . . Repair Stations . | . . . Recycling Units . | . . . Scanalyzers . | . . . Garrison Access . | . . . Total Hacks 15 | . 15 . Successful 6 | . 6 . Failed 9 | . 9 . Catastrophic 3 | . 3 . Database Lockouts . | . . . Manual 16 | . 16 . Terminals 15 | . 15 . Fabricators . | . . . Repair Stations . | . . . Recycling Units . | . . . Scanalyzers . | . . . Garrison Access . | . . . Terminal Hacks 4 | . 4 . Branch Access Points 1 | . 1 . Terminal Index 1 | . 1 . Unreport Threat 1 | . 1 . Transport Status 1 | . 1 . Fabricator Hacks . | . . . Repair Station Hacks . | . . . Recycling Unit Hacks . | . . . Scanalyzer . | . . . Garrison Access Hacks . | . . . Unauthorized Hacks 2 | . 2 . Terminals 2 | . 2 . Botnet 1 | . 1 . Operators 1 | . 1 . Fabricators . | . . . Repair Stations . | . . . Recycling Units . | . . . Scanalyzers . | . . . Garrison Access . | . . . Data Cores Recovered . | . . . Used . | . . . Hacking Detections 4 | . 4 . Full Trace Events 2 | . 2 . Feedback Events . | . . . Feedback Blocked . | . . . Robot Schematics Acquired . | . . . Robots Built . | . . . Authchips . | . . . Time . | . . . Total Robot Build Rating . | . . . Part Schematics Acquired . | . . . Parts Built . | . . . Authchips . | . . . Time . | . . . Total Part Build Rating . | . . . Parts Repaired . | . . . Time . | . . . Parts Recycled . | . . . Recycled Matter . | . . . Retrieved Matter . | . . . Retrieved Components . | . . . Parts Scanalyzed . | . . . Part Schematics Acquired . | . . . Parts Damaged . | . . . Bothacking | -11 -10 -10 ------------ Run | Yrd Mat Min Used RIF Installer . | . . . Robots Hacked . | . . . Non-combat . | . . . Combat . | . . . Robot Hacks Applied . | . . . Relay Couplers Released . | . . . Fabnet Peak Effective % . | . . . Robots Rewired . | . . . Allies Hacked . | . . . Hacks Repelled . | . . . Allies | -11 -10 -10 -------- Run | Yrd Mat Min Total Allies 3 | . . 3 Largest Group 3 | . . 3 Highest-Rated Group 40 | . . 40 Highest-Rated Ally 16 | . . 16 Total Orders . | . . . Ally Attacks 11 | . . 11 Total Damage 100 | . . 100 Kills 2 | . . 2 Allies Corrupted 1 | . . 1 Allies Melted . | . . . Intel | -11 -10 -10 ------- Run | Yrd Mat Min Robot Analysis Total . | . . . Derelict Logs Recovered 1 | . . 1 Drone Launches . | . . . Drone Recoveries . | . . . Exploration | -11 -10 -10 ------------- Run | Yrd Mat Min Turns Passed 1614 | 129 1382 103 Spaces Moved 643 | 69 489 85 Core 7 | 5 2 . Treads 441 | 64 377 . Legs 29 | . 29 . Wheels 166 | . 81 85 Hover . | . . . Flight . | . . . Fastest Speed 50 | 50 105 105 Average Speed 187 | 152 206 105 Slowest Speed 900 | 160 900 105 Overloaded Moves . | . . . Propulsion Burnouts . | . . . Robots Hopped . | . . . Cave-ins Triggered . | . . . Exploration Rate (%) 36 | 5 73 30 Regions Visited 2 Branch Regions 1 Pre-discovered Areas . | . . . Known Exits Taken 1 | . 1 . Unknown Exits Taken 1 | 1 . . Scrap Searched . | . . . Spaces Dug . | . . . Terrain Destroyed 5 | . 5 . Melee . | . . . Projectile . | . . . AOE 5 | . 5 . Terrain Rammed . | . . . Walls Destroyed . | . . . Machines Disabled . | . . . Actions | -11 -10 -10 --------- Run | Yrd Mat Min Total 918 | 86 741 91 Wait 156 | . 156 . Move 641 | 68 488 85 Hop . | . . . Pick Up 22 | 7 15 . Fast Attach . | . . . Attach 15 | 7 8 . Detach 2 | . 2 . Swap 9 | . 9 . Drop 2 | . 2 . Fire 71 | 4 61 6 Melee . | . . . Ram . | . . . Kick . | . . . Crush . | . . . Escape Stasis . | . . . Rewire . | . . . Trap . | . . . Miscellaneous . | . . . Route ------- -11/Scrapyard -10/Materials (discovered 3 exits: [*Mat] / *Min x2) -10/Mines History --------- Turn | Location | Event 11 | -11/Scrapyard | Discovered new exit (range 16) 130 | -11/Scrapyard | Entered Materials 318 | -10/Materials | Build established: Mutant 334 | -10/Materials | Discovered new exit (range 9) 697 | -10/Materials | Discovered new exit (range 16) 733 | -10/Materials | Identified exit to Mines 1254 | -10/Materials | Lost 3 parts (1p2n) 1512 | -10/Materials | Entered Mines 1517 | -10/Mines | Assisted by bots powering up and referring to "LRC-V3" 1590 | -10/Mines | Assembled infested the area 1595 | -10/Mines | Assisted by a Guerilla fighting off Assembled 1611 | -10/Mines | Core integrity fell below 50% 1614 | -10/Mines | Core integrity fell below 20% 1615 | -10/Mines | Destroyed by as-52392 with Assembled Heavy Rifle Last Messages --------------- 01600_ as-17098 suffers critical hit (Destroy). 01600_ as-17098 destroyed. 01604_ HV Slug penetrates Wall. 01604_ Hacking Suite destroyed. 01604_ System corrupted by crushing effect (+3). 01607_ Assault Rifle destroyed. 01607_ System corrupted by crushing effect (+3). 01607_ Knocked back. 01608_ C-30 ARC bursts open, deploying its payload. 01608_ D-53 Grenadier unfolds itself. 01609_ as-44636 suffers critical hit (Destroy). 01609_ as-44636 destroyed. 01610_ as-27451 destroyed. 01610_ U-05 Engineer destroyed. 01610_ as-64670 destroyed. 01611_ as-25165 destroyed. 01612_ Com. Wheel destroyed. 01612_ Wheel destroyed. 01612_ Lgt. Nuclear Core destroyed. Map ----- +----------------------------------------------------+ | """ ##???????????????????????????? | | """ ###### ##??????????????????????????? | | ##????# #??????????????????????????? | | ##?????# #??????????????????????????? | | #?????# #??????????????????????????? | | # ##????# #??????????????????????????? | | # #?????# ##??????????????????????????? | | ## #????# #####???????????????????????????? | | ?#### #???# ##???????????????????????????????? | | ????###???# #?????????????????????????????????? | | ??????????# #??????????????????#???????????????? | | ???###########?????????????????? ####????????????? | | ??## #####????????????????? ?????????????? | | ??# #?????####??????? ???????????????? | | ??# ## ####### ##????## #????????????????? | | ??# ### ##### ###??????????????? | | ### #?# ";###????????????? | | ##?######### |!% ??????????? | | ##??????????## ## a% ??????????? | | ###????????????## ##??a ## ##???????????? | | # #???????????????## ##### ## #????????????? | | ## #????????????##?### # aa ?????????????? | | ### #???????????## # aa% a#???????????????? | | #?# #???????????# a #???????????????? | | #?# #???????????# #???????????????? | | ? #???????????# @ #???????????????? | | #?# #???? #???????????????? | | ??# #???? d #???????????????? | | ??# #????# d ##???????????????? | | ??? #?????# % #### #####????????????????? | | ??? #?????## $## ????###????????????????????? | | ??? ???????# ??# #???????????????????????????? | | ??? ???????#???## #????????????????????????????? | | ??? ????????????# ?????????????????????????????? | | ?????????????????# ??????????????????????????????? | | ?????????????????##??????????????????????????????? | | ?????????????????????????????????????????????????? | | ?????????????????????????????????????????????????? | | ?????????????????????????????????????????????????? | | ?????????????????????????????????????????????????? | | ?????????????????????????????????????????????????? | | ?????????????????????????????????????????????????? | | ?????????????????????????????????????????????????? | | | | | | | | | | | | | | | +----------------------------------------------------+ Best States ------------- Heat Dissipation 39 Energy Generation 14 Energy Capacity 250 Matter Stores 300 Matter Capacity 300 Sight Range 16 Terrain Scan Range 16 Terrain Scan Density 10 Evasion (%) 40 Recoil Reduction 2 Offensive Hacking 10 Item Schematics ----------------- None Robot Schematics ------------------ None Fabricated ------------ Nothing Alien Tech Used ----------------- None Achievements -------------- None Challenges ------------ None Game ------ Seed ShadeGreatRouter Manual? 0 Play Time 00:14:53 Cumulative 10.2 hours Start 2024.04.07 @ 15:36:39 End 2024.04.07 @ 16:18:10 Sessions 1 Manual Loads 0 Difficulty Rogue Special Mode None Game No. 17 Rogue 14 Adventurer 3 Explorer 0 Win Type - Total 0 Types 0/0/0/0/0/0/0/0/0 Lore% 11 Gallery% 22 Achievement% 17 Wizard Run 0 Options --------- Layout 1 ASCII 0 Keyboard 0 Movement Mouse Keybinds 0 Fullscreen 1 Font 32/SmallcapsGlow Map View 50x35 Zoom Use 0% Tactical HUD 1 Map Filters NONE Filters NONE Steam 1 RUN: 0c36b574-3c37-43f7-8d30-d2de9d9e204e